[Event "GER-chT Youth Countries 2018"]
[Site "Wurzburg"]
[Date "2018.10.03"]
[Round "2"]
[White "Wagner, Leopold Franziskus"]
[Black "Richter, Nils"]
[Result "0-1"]
[ECO "B44"]
[WhiteElo "1941"]
[BlackElo "2035"]
[Annotator "NA"]
[PlyCount "115"]
[EventDate "2018.10.02"]
[EventType "team-tourn"]
[EventCountry "GER"]
[SourceTitle "playchess.com"]
[Source "ChessBase"]
[SourceQuality "1"]
[TimeControl "40/5400+30:1800+30"]

1. e4 {[%emt 0:00:00]} c5 {[%emt 0:00:00]} 2. Nf3 {[%emt 0:00:00]} e6 {[%emt 0:00:00]} 3. d4 {[%emt 0:00:00]} cxd4 {[%emt 0:00:00]} 4. Nxd4 {[%emt 0:00:00]} Nc6 {[%emt 0:00:00]} 5. c4 {[%emt 0:00:42]} Nf6 {[%emt 0:00:22]} 6. Nc3 {[%emt 0:00:25]} Bb4 {[%emt 0:00:13]} 7. f3 {[%emt 0:00:49]} O-O {[%emt 0:01:35]} 8. Nxc6 {[%emt 0:08:17]} dxc6 {[%emt 0:01:04]} 9. Be3 {[%emt 0:02:24]} e5 {[%emt 0:02:46]} 10. Qb3 {[%emt 0:02:29]} Be7 {[%emt 0:02:50]} 11. Rd1 {[%emt 0:00:22]} Qc7 {[%emt 0:00:26]} 12. Be2 {[%emt 0:00:30]} Be6 {[%emt 0:03:50]} 13. g4 {[%emt 0:02:45]} Nd7 {[%emt 0:02:26]} 14. h4 {[%emt 0:01:32]} Nc5 {[%emt 0:09:09]} 15. Qc2 {[%emt 0:00:15]} a5 {[%emt 0:01:54]} 16. h5 {[%emt 0:02:17]} Rad8 {[%emt 0:03:20]} 17. g5 {[%emt 0:01:08]} g6 {[%emt 0:05:25]} 18. Bf1 {[%emt 0:05:41]} Na6 {[%emt 0:12:20]} 19. a3 {[%emt 0:00:58]} Bc5 {[%emt 0:00:47]} 20. Bxc5 {[%emt 0:01:05]} Nxc5 {[%emt 0:01:53]} 21. Be2 {[%emt 0:18:42]} Bc8 {[%emt 0:07:16]} 22. Kf2 {[%emt 0:06:18]} Rxd1 {[%emt 0:02:36]} 23. Rxd1 {[%emt 0:05:14]} Ne6 {[%emt 0:01:28]} 24. Qc1 {[%emt 0:03:36]} Nf4 {[%emt 0:01:52]} 25. hxg6 {[%emt 0:01:05]} fxg6 {[%emt 0:00:12]} 26. Bf1 {[%emt 0:08:11]} Qb6+ {[%emt 0:04:30]} 27. c5 {[%emt 0:04:07]} Qxc5+ {[%emt 0:00:08]} 28. Qe3 {[%emt 0:00:28]} Qe7 {[%emt 0:03:47]} 29. Ne2 {[%emt 0:01:24]} Qxg5 {[%emt 0:03:51]} 30. Nxf4 {[%emt 0:00:21]} Qh4+ {[%emt 0:00:48]} 31. Ke2 {[%emt 0:00:49]} Qxf4 {[%emt 0:01:17]} 32. Qxf4 {[%emt 0:02:24]} exf4 {[%emt 0:02:46]} 33. Rc1 {[%emt 0:00:40]} Bd7 {[%emt 0:01:22]} 34. Kd3 {[%emt 0:00:28]} Kf7 {[%emt 0:04:18]} 35. Kd4 {[%emt 0:01:01]} b6 {[%emt 0:00:08]} 36. Ke5 {[%emt 0:01:02]} Ke7 {[%emt 0:00:43]} 37. Bc4 {[%emt 0:01:01]} Rf6 {[%emt 0:09:45]} 38. Rd1 {[%emt 0:01:00]} Be8 {[%emt 0:00:55]} 39. b4 {[%emt 0:00:26]} axb4 {[%emt 0:08:27]} 40. axb4 {[%emt 0:00:09]} g5 {[%emt 0:00:35]} 41. Ra1 {[%emt 0:31:23]} Rd6 {[%emt 0:30:50]} 42. Ra6 {[%emt 0:05:18]} b5 {[%emt 0:00:03]} 43. Bg8 {[%emt 0:03:51]} h6 {[%emt 0:01:12]} 44. Ra7+ {[%emt 0:01:21]} Rd7 {[%emt 0:00:56]} 45. Ra6 {[%emt 0:00:18]} Rd6 {[%emt 0:00:00]} 46. Ra7+ {[%emt 0:00:00]} Bd7 {[%emt 0:00:00]} 47. Bf7 {[%emt 0:00:00]} g4 {[%emt 0:00:00]} 48. fxg4 {[%emt 0:00:00]} f3 {[%emt 0:00:00]} 49. Bh5 {[%emt 0:00:00]} f2 {[%emt 0:00:00]} 50. Ra1 {[%emt 0:00:00]} Re6+ {[%emt 0:00:00]} 51. Kd4 {[%emt 0:00:00]} Rf6 {[%emt 0:00:00]} 52. Rf1 {[%emt 0:00:00]} Ke6 {[%emt 0:00:00]} 53. g5 {[%emt 0:00:00]} hxg5 {[%emt 0:00:00]} 54. Bg4+ {[%emt 0:00:00]} Ke7 {[%emt 0:00:00]} 55. Bxd7 {[%emt 0:00:00]} Kxd7 {[%emt 0:00:00]} 56. Ke3 {[%emt 0:00:00]} Ke6 {[%emt 0:00:00]} 57. Rxf2 {[%emt 0:00:00]} Rxf2 {[%emt 0:00:00]} 58. Kd4 {Ke5+} 0-1

[Event "GER-chT Youth Countries 2018"]
[Site "Wurzburg"]
[Date "2018.10.03"]
[Round "2"]
[White "Hommel, Niclas"]
[Black "von Krosigk, Florian"]
[Result "0-1"]
[ECO "B42"]
[WhiteElo "1915"]
[BlackElo "1897"]
[Annotator "NA"]
[PlyCount "76"]
[EventDate "2018.10.02"]
[EventType "team-tourn"]
[EventCountry "GER"]
[SourceTitle "playchess.com"]
[Source "ChessBase"]
[SourceQuality "1"]
[TimeControl "40/5400+30:1800+30"]

1. e4 {[%emt 0:00:00]} c5 {[%emt 0:00:00]} 2. Nf3 {[%emt 0:00:00]} e6 {[%emt 0:00:00]} 3. d4 {[%emt 0:00:00]} cxd4 {[%emt 0:00:00]} 4. Nxd4 {[%emt 0:00:00]} a6 {[%emt 0:00:03]} 5. Bd3 {[%emt 0:00:00]} Nf6 {[%emt 0:00:30]} 6. O-O {[%emt 0:00:35]} Qc7 {[%emt 0:00:49]} 7. c4 {[%emt 0:00:57]} b6 {[%emt 0:01:41]} 8. Nc3 {[%emt 0:02:03]} Bb7 {[%emt 0:02:18]} 9. a3 {[%emt 0:04:04]} d6 {[%emt 0:03:36]} 10. Be3 {[%emt 0:00:46]} Nbd7 {[%emt 0:01:13]} 11. f3 {[%emt 0:08:08]} Be7 {[%emt 0:03:42]} 12. Rc1 {[%emt 0:02:52]} O-O {[%emt 0:01:29]} 13. b4 {[%emt 0:01:17]} Rac8 {[%emt 0:03:45]} 14. f4 {[%emt 0:01:52]} Qb8 {[%emt 0:02:57]} 15. g4 {[%emt 0:03:11]} Qa8 {[%emt 0:10:15]} 16. Qf3 {[%emt 0:00:27]} d5 {[%emt 0:01:49]} 17. cxd5 {[%emt 0:06:11]} exd5 {[%emt 0:01:26]} 18. e5 {[%emt 0:00:09]} Ne4 {[%emt 0:00:29]} 19. Nf5 {[%emt 0:17:01]} Rfe8 {[%emt 0:01:37]} 20. Nxe7+ {[%emt 0:02:41]} Rxe7 {[%emt 0:00:15]} 21. Nxd5 {[%emt 0:00:06]} Bxd5 {[%emt 0:01:01]} 22. Rxc8+ {[%emt 0:00:05]} Qxc8 {[%emt 0:00:05]} 23. Bxe4 {[%emt 0:00:05]} Bxe4 {[%emt 0:00:14]} 24. Qxe4 {[%emt 0:00:21]} Nf6 {[%emt 0:11:32]} 25. Qf3 {[%emt 0:06:12]} Nxg4 {[%emt 0:06:35]} 26. Bxb6 {[%emt 0:05:58]} Re6 {[%emt 0:03:09]} 27. Bc5 {[%emt 0:13:54]} Rg6 {[%emt 0:08:26]} 28. Kh1 {[%emt 0:00:44]} Rh6 {[%emt 0:00:19]} 29. Bg1 {[%emt 0:00:07]} Rh3 {[%emt 0:00:44]} 30. Rc1 {[%emt 0:08:36]} Rxh2+ {[%emt 0:00:28]} 31. Bxh2 {[%emt 0:00:03]} Qxc1+ {[%emt 0:00:07]} 32. Bg1 {[%emt 0:00:03]} h5 {[%emt 0:02:27]} 33. a4 {[%emt 0:05:31]} Qc4 {[%emt 0:02:16]} 34. Bc5 {[%emt 0:02:06]} a5 {[%emt 0:00:55]} 35. Kg2 {[%emt 0:07:42]} axb4 {[%emt 0:00:36]} 36. Bf2 {[%emt 0:00:34]} b3 {[%emt 0:00:51]} 37. a5 {[%emt 0:00:46]} b2 {[%emt 0:01:00]} 38. Qd1 {[%emt 0:00:06]} Qe4+ {[%emt 0:00:15]} 0-1

[Event "GER-chT Youth Countries 2018"]
[Site "Wurzburg"]
[Date "2018.10.03"]
[Round "2"]
[White "Schumann, Rabea"]
[Black "Grund, Sebastian"]
[Result "0-1"]
[ECO "A15"]
[WhiteElo "1903"]
[BlackElo "1992"]
[Annotator "NA RC"]
[PlyCount "142"]
[EventDate "2018.10.02"]
[EventType "team-tourn"]
[EventCountry "GER"]
[SourceTitle "playchess.com"]
[Source "ChessBase"]
[SourceQuality "1"]
[TimeControl "40/5400+30:1800+30"]

1. c4 {[%emt 0:00:00]} Nf6 {[%emt 0:00:00]} 2. g3 {[%emt 0:00:00]} c6 {[%emt 0:00:55]} 3. Nf3 {[%emt 0:00:41]} g6 {[%emt 0:00:18]} 4. Bg2 {[%emt 0:00:14]} Bg7 {[%emt 0:00:06]} 5. Nc3 {[%emt 0:01:33]} d5 {[%emt 0:00:10]} 6. O-O {[%emt 0:18:36]} O-O {[%emt 0:00:21]} 7. d3 {[%emt 0:00:43]} Nbd7 {[%emt 0:11:24] A16: English Opening: 1...Nf6 with ...d5} (7... dxc4 8. dxc4 Qxd1 9. Rxd1 Be6 10. b3 Ne4 11. Nxe4 Bxa1 12. Ba3 Bf5 13. Nc5 Bf6 14. Nxb7 a5 15. h3 a4 16. b4 Ra7 17. Nc5 {0-1 (54) Ernst,S (2546)-Sokolov,I (2565) Amsterdam 2018}) 8. Qc2 {[%emt 0:02:14]} e5 {[%emt 0:02:51]} 9. e4 {[%emt 0:05:20]} d4 $146 {[%emt 0:07:01]} ({Predecessor:} 9... dxc4 10. dxc4 Qc7 11. h3 b6 12. Rd1 Bb7 13. Be3 Rad8 14. Rac1 Nb8 15. c5 b5 16. b4 Bc8 17. Nd2 Nh5 18. Nf1 Be6 19. Rxd8 Rxd8 20. Rd1 Bc4 21. Rxd8+ Qxd8 22. Qd2 Qxd2 {½-½ (22) Szarvas,S (2126)-Slezak,R (2167) Hungary 2006}) 10. Ne2 {[%emt 0:01:09]} a5 {[%emt 0:03:04]} 11. b3 {[%emt 0:03:22]} Qe7 {[%emt 0:05:33]} 12. Nh4 {[%emt 0:05:21]} Ne8 {[%emt 0:17:00]} 13. f4 {[%emt 0:04:41]} exf4 {[%emt 0:01:13]} 14. Bxf4 {[%emt 0:02:09]} c5 {[%emt 0:04:58]} 15. Rae1 {[%emt 0:14:27]} Ne5 {[%emt 0:04:12]} 16. Nf3 {[%emt 0:07:12]} Nd6 {[%emt 0:09:31]} 17. Nxe5 {[%emt 0:04:07]} Bxe5 {[%emt 0:00:14]} 18. Bxe5 {[%emt 0:00:31]} Qxe5 {[%emt 0:00:09]} 19. Nf4 {[%emt 0:00:48]} Be6 {[%emt 0:04:54]} 20. Qd2 {[%emt 0:07:54]} Qg5 {[%emt 0:07:00]} 21. Rf2 {[%emt 0:03:30]} Rae8 {[%emt 0:03:35]} 22. Bh3 {[%emt 0:09:01]} Bxh3 {[%emt 0:02:52]} 23. Nxh3 {[%emt 0:00:06]} Qxd2 {[%emt 0:00:05]} 24. Rxd2 {[%emt 0:00:05]} Re5 {[%emt 0:00:15]} 25. Rde2 {[%emt 0:04:13]} Rfe8 {[%emt 0:00:53]} 26. Kf2 {[%emt 0:01:06]} g5 {[%emt 0:07:56]} 27. Kf3 {[%emt 0:02:40]} R8e6 {[%emt 0:04:20]} 28. g4 {[%emt 0:00:52]} Ne8 {[%emt 0:01:50]} 29. Kg3 {[%emt 0:00:34]} h5 {[%emt 0:00:57]} 30. Ng1 {[%emt 0:00:48]} hxg4 {[%emt 0:00:16]} 31. Kxg4 {[%emt 0:00:13]} Rg6 {[%emt 0:00:07]} 32. Nf3 {[%emt 0:00:13]} Nf6+ {[%emt 0:00:21]} 33. Kg3 {[%emt 0:00:21]} Re8 {[%emt 0:01:00]} 34. Kf2 {[%emt 0:01:12]} Ng4+ {[%emt 0:01:00]} 35. Kg3 {[%emt 0:00:06]} Ne3 {[%emt 0:00:30]} 36. h3 {[%emt 0:00:44]} Kg7 {[%emt 0:00:27]} 37. Nh2 {[%emt 0:00:19]} Rh8 {[%emt 0:00:30]} 38. Ng4 {[%emt 0:00:36]} Nxg4 39. Kxg4 {[%emt 0:00:44]} Rh4+ {[%emt 0:00:11]} 40. Kg3 {[%emt 0:00:22]} Rf6 {[%emt 0:01:03]} 41. Rb1 {[%emt 0:12:57]} Rhf4 {[%emt 0:01:11]} 42. Rd1 {[%emt 0:05:47]} Kg6 {[%emt 0:04:19]} 43. e5 {[%emt 0:05:52]} Re6 {[%emt 0:00:20]} 44. Rde1 {[%emt 0:01:53]} Rh4 {[%emt 0:03:03]} 45. Rf1 {[%emt 0:01:06]} f5 {[%emt 0:12:12]} 46. exf6 {[%emt 0:01:03]} Rxe2 {[%emt 0:00:18]} 47. f7 {[%emt 0:00:05]} Re3+ {[%emt 0:00:21]} 48. Kg2 {[%emt 0:00:19]} Rh8 {[%emt 0:00:26]} 49. f8=Q {[%emt 0:00:35]} Rxf8 {[%emt 0:00:09]} 50. Rxf8 {[%emt 0:00:05]} Rxd3 {[%emt 0:00:10]} 51. Rc8 {[%emt 0:03:34]} b6 {[%emt 0:00:50]} 52. Rc6+ {[%emt 0:00:57]} Kf5 {[%emt 0:00:07]} 53. Rxb6 {[%emt 0:00:15]} Re3 {[%emt 0:01:04]} 54. Rc6 $1 {[%emt 0:00:59]} Re5 {[%emt 0:00:56]} 55. Kf3 {[%emt 0:00:21]} Re3+ {[%emt 0:00:49]} (55... a4 $5) 56. Kg2 {[%emt 0:00:06]} Ke4 {[%emt 0:03:04]} 57. Rxc5 {[%emt 0:00:40]} d3 {[%emt 0:00:11]} 58. Rd5 {[%emt 0:01:05]} Re2+ {[%emt 0:00:22]} 59. Kf1 {[%emt 0:01:08]} Ke3 {[%emt 0:00:31]} (59... Rxa2 $142 60. Ke1 Ke3 61. Re5+ Kd4) 60. Re5+ {[%emt 0:01:24]} Kd2 {[%emt 0:00:13]} 61. Rxg5 {[%emt 0:00:37]} Kc2 {[%emt 0:01:34]} 62. c5 {[%emt 0:00:25] [#]} d2 $1 {[%emt 0:00:32]} 63. Kxe2 {[%emt 0:00:51]} d1=Q+ {[%emt 0:00:10]} 64. Ke3 {[%emt 0:00:29]} Qd2+ {[%emt 0:00:07]} 65. Ke4 {[%emt 0:00:13]} Qxg5 {[%emt 0:00:07]} 66. Kd4 {[%emt 0:00:08]} Qh4+ {[%emt 0:00:52]} 67. Kd5 {[%emt 0:00:12]} Qxh3 {[%emt 0:00:10]} 68. Kc6 {[%emt 0:00:31]} Qc8+ {[%emt 0:00:12]} 69. Kb5 {[%emt 0:00:17]} Kb2 {[%emt 0:00:10]} 70. b4 {[%emt 0:01:24]} axb4 {[%emt 0:00:15]} 71. Kxb4 {[%emt 0:00:16]} Kxa2 {[%emt 0:00:06]} 0-1

[Event "GER-chT Youth Countries 2018"]
[Site "Wurzburg"]
[Date "2018.10.03"]
[Round "2"]
[White "Ratay, Meike"]
[Black "Focke, Adrian"]
[Result "1-0"]
[ECO "B43"]
[WhiteElo "1887"]
[BlackElo "1804"]
[Annotator "NA"]
[PlyCount "63"]
[EventDate "2018.10.02"]
[EventType "team-tourn"]
[EventCountry "GER"]
[SourceTitle "playchess.com"]
[Source "ChessBase"]
[SourceQuality "1"]
[TimeControl "40/5400+30:1800+30"]

1. e4 {[%emt 0:00:00]} c5 {[%emt 0:00:00]} 2. Nf3 {[%emt 0:00:00]} e6 {[%emt 0:00:00]} 3. d4 {[%emt 0:00:00]} cxd4 {[%emt 0:00:00]} 4. Nxd4 {[%emt 0:00:00]} a6 {[%emt 0:00:00]} 5. Nc3 {[%emt 0:00:00]} Qc7 {[%emt 0:00:00]} 6. Bd3 {[%emt 0:00:11]} Nf6 {[%emt 0:00:30]} 7. O-O {[%emt 0:00:33]} b6 {[%emt 0:08:06]} 8. Qe2 {[%emt 0:02:29]} d6 {[%emt 0:00:37]} 9. f4 {[%emt 0:02:46]} Nbd7 {[%emt 0:01:30]} 10. Kh1 {[%emt 0:02:14]} Bb7 {[%emt 0:00:09]} 11. Bd2 {[%emt 0:00:40]} Be7 {[%emt 0:04:23]} 12. Rae1 {[%emt 0:01:25]} Nc5 {[%emt 0:01:54]} 13. b4 {[%emt 0:08:10]} Nxd3 {[%emt 0:08:03]} 14. cxd3 {[%emt 0:00:24]} Rc8 {[%emt 0:03:30]} 15. g4 {[%emt 0:13:49]} h6 {[%emt 0:05:21]} 16. a3 {[%emt 0:05:33]} Nd7 {[%emt 0:04:00]} 17. Nf3 {[%emt 0:09:37]} Qb8 {[%emt 0:09:01]} 18. d4 {[%emt 0:10:01]} Qa8 {[%emt 0:10:01]} 19. d5 {[%emt 0:06:13]} O-O {[%emt 0:01:40]} 20. g5 {[%emt 0:07:20]} hxg5 {[%emt 0:02:04]} 21. fxg5 {[%emt 0:01:20]} exd5 {[%emt 0:04:01]} 22. exd5 {[%emt 0:02:00]} Rfe8 {[%emt 0:00:44]} 23. Qd3 {[%emt 0:00:54]} Rxc3 {[%emt 0:05:42]} 24. Bxc3 {[%emt 0:01:03]} Bxd5 {[%emt 0:00:47]} 25. Kg1 {[%emt 0:01:34]} b5 {[%emt 0:06:39]} 26. Qf5 {[%emt 0:03:11]} Ne5 {[%emt 0:07:02]} 27. Nxe5 {[%emt 0:06:34]} dxe5 {[%emt 0:00:07]} 28. Rxe5 {[%emt 0:00:13]} Bc4 {[%emt 0:03:06]} 29. Rfe1 {[%emt 0:00:52]} Qa7+ {[%emt 0:01:07]} 30. Qf2 {[%emt 0:00:25]} Qc7 {[%emt 0:00:36]} 31. Qe3 {[%emt 0:01:22]} Be6 {[%emt 0:01:32]} 32. g6 {[%emt 0:00:56]} 1-0

[Event "GER-chT Youth Countries 2018"]
[Site "Wurzburg"]
[Date "2018.10.03"]
[Round "2"]
[White "Moeller, Lisa-Marie"]
[Black "Woerz, Ann-Sophie"]
[Result "1/2-1/2"]
[ECO "C28"]
[WhiteElo "1868"]
[BlackElo "1463"]
[Annotator "NA"]
[PlyCount "58"]
[EventDate "2018.10.02"]
[EventType "team-tourn"]
[EventCountry "GER"]
[SourceTitle "playchess.com"]
[Source "ChessBase"]
[SourceQuality "1"]
[TimeControl "40/5400+30:1800+30"]

1. e4 {[%emt 0:00:00]} e5 {[%emt 0:00:00]} 2. Nc3 {[%emt 0:00:00]} Nc6 {[%emt 0:00:35]} 3. Bc4 {[%emt 0:01:04]} Nf6 {[%emt 0:01:17]} 4. d3 {[%emt 0:00:40]} Bc5 {[%emt 0:01:56]} 5. Nge2 {[%emt 0:03:08]} d6 {[%emt 0:01:55]} 6. h3 {[%emt 0:02:01]} Be6 {[%emt 0:03:26]} 7. Bxe6 {[%emt 0:02:53]} fxe6 {[%emt 0:00:10]} 8. Na4 {[%emt 0:02:18]} Bb6 {[%emt 0:01:57]} 9. Nxb6 {[%emt 0:03:25]} axb6 {[%emt 0:00:15]} 10. O-O {[%emt 0:05:36]} O-O {[%emt 0:04:34]} 11. f4 {[%emt 0:06:25]} d5 {[%emt 0:05:47]} 12. fxe5 {[%emt 0:03:20]} Nxe5 {[%emt 0:01:28]} 13. d4 {[%emt 0:04:16]} Ng6 {[%emt 0:04:44]} 14. e5 {[%emt 0:03:21]} Ne4 {[%emt 0:02:10]} 15. Be3 {[%emt 0:02:04]} Nh4 {[%emt 0:09:59]} 16. Bf4 {[%emt 0:12:57]} Nf5 {[%emt 0:09:28]} 17. Qd3 {[%emt 0:04:11]} c5 {[%emt 0:05:12]} 18. c4 {[%emt 0:06:00]} cxd4 {[%emt 0:03:41]} 19. g4 {[%emt 0:06:08]} Ne7 {[%emt 0:05:15]} 20. Nxd4 {[%emt 0:01:38]} Nc5 {[%emt 0:03:36]} 21. Qe2 {[%emt 0:03:15]} dxc4 {[%emt 0:02:49]} 22. Qxc4 {[%emt 0:01:42]} Ra4 {[%emt 0:00:57]} 23. b4 {[%emt 0:03:56]} Qc8 {[%emt 0:08:30]} 24. Qb5 {[%emt 0:02:51]} Nd5 {[%emt 0:02:26]} 25. Bd2 {[%emt 0:01:03]} Rxf1+ {[%emt 0:01:05]} 26. Kxf1 {[%emt 0:01:20]} Nc7 {[%emt 0:01:09]} 27. Qxb6 {[%emt 0:03:25]} Nd7 {[%emt 0:03:52]} 28. Qd6 {[%emt 0:00:31]} Ra6 {[%emt 0:00:52]} 29. Qe7 {[%emt 0:01:05]} Nd5 {[%emt 0:01:11]} 1/2-1/2

[Event "GER-chT Youth Countries 2018"]
[Site "Wurzburg"]
[Date "2018.10.03"]
[Round "2"]
[White "Zeuner, Ole"]
[Black "Glinzner, Alva"]
[Result "0-1"]
[ECO "B14"]
[WhiteElo "1865"]
[BlackElo "1787"]
[Annotator "NA RC"]
[PlyCount "158"]
[EventDate "2018.10.02"]
[EventType "team-tourn"]
[EventCountry "GER"]
[SourceTitle "playchess.com"]
[Source "ChessBase"]
[SourceQuality "1"]
[TimeControl "40/5400+30:1800+30"]

1. e4 {[%emt 0:00:00]} c6 {[%emt 0:00:00]} 2. d4 {[%emt 0:00:00]} d5 {[%emt 0:00:00]} 3. exd5 {[%emt 0:00:09]} cxd5 {[%emt 0:00:00]} 4. c4 {[%emt 0:00:08]} Nf6 {[%emt 0:00:16]} 5. Nc3 {[%emt 0:00:11]} g6 {[%emt 0:00:40]} 6. Nf3 {[%emt 0:00:31]} Bg7 {[%emt 0:00:19]} 7. Be3 {[%emt 0:04:15]} O-O {[%emt 0:00:59]} 8. Qd2 {[%emt 0:01:10]} Nbd7 9. cxd5 {[%emt 0:05:08]} Nb6 {[%emt 0:03:45]} 10. Bd3 {[%emt 0:00:49]} Nbxd5 {[%emt 0:04:20]} 11. Bh6 {[%emt 0:01:47]} Qb6 {[%emt 0:05:59]} 12. Bxg7 {[%emt 0:02:45]} Kxg7 {[%emt 0:00:41]} 13. h3 {[%emt 0:02:26]} Bd7 {[%emt 0:03:21]} 14. O-O {[%emt 0:00:40]} Bc6 {[%emt 0:00:54]} 15. Rfe1 {[%emt 0:04:36]} Rad8 {[%emt 0:07:21]} 16. Rac1 {[%emt 0:06:06]} e6 {[%emt 0:06:27]} 17. Bb1 {[%emt 0:07:08]} Ne7 {[%emt 0:08:36]} 18. Ne4 {[%emt 0:06:51]} Nxe4 {[%emt 0:03:09]} 19. Bxe4 {[%emt 0:00:09]} Bd5 {[%emt 0:01:34]} 20. b3 {[%emt 0:08:03]} Nc6 {[%emt 0:02:34]} 21. Qb2 {[%emt 0:02:28]} Rd6 {[%emt 0:12:54]} 22. Rcd1 {[%emt 0:04:46]} Rfd8 {[%emt 0:01:19]} 23. Rd2 {[%emt 0:07:56]} Qc7 {[%emt 0:10:27]} 24. Bxd5 {[%emt 0:09:04]} Rxd5 {[%emt 0:00:15]} 25. a3 {[%emt 0:02:06]} Qf4 {[%emt 0:06:36]} 26. Red1 {[%emt 0:00:45]} Qf6 {[%emt 0:01:43]} 27. Kf1 {[%emt 0:09:14]} Ne7 {[%emt 0:05:36]} 28. Ne5 {[%emt 0:05:21]} Nf5 {[%emt 0:01:59]} 29. Rd3 {[%emt 0:00:32]} Qg5 {[%emt 0:06:22]} 30. g3 {[%emt 0:07:38]} h5 {[%emt 0:03:36]} 31. h4 {[%emt 0:00:56]} Qe7 {[%emt 0:00:18]} 32. R1d2 {[%emt 0:00:52]} R8d6 {[%emt 0:02:05]} 33. Nc4 {[%emt 0:01:14]} Rd7 {[%emt 0:00:42]} 34. Ne5 {[%emt 0:00:34]} R7d6 {[%emt 0:00:16]} 35. Kg2 {[%emt 0:00:06]} Qd8 {[%emt 0:00:28]} 36. Nc4 {[%emt 0:00:02]} Rd7 {[%emt 0:00:14]} 37. Ne5 {[%emt 0:00:48]} R7d6 {[%emt 0:00:29]} 38. Nc4 {[%emt 0:00:01]} Rd7 {[%emt 0:01:08]} 39. Ne3 {[%emt 0:00:05]} Nxe3+ {[%emt 0:00:52]} 40. fxe3 {[%emt 0:00:01]} f6 {[%emt 0:00:52]} 41. Qc2 {[%emt 0:03:48]} R5d6 {[%emt 0:05:47]} 42. Qd1 {[%emt 0:03:52]} Qa5 {[%emt 0:01:54]} 43. a4 {[%emt 0:04:26]} Qd5+ {[%emt 0:01:00]} 44. Qf3 {[%emt 0:00:06]} Qxf3+ {[%emt 0:01:10]} 45. Kxf3 {[%emt 0:00:06]} Rc7 {[%emt 0:03:00]} 46. e4 {[%emt 0:01:59]} Kf7 {[%emt 0:01:10]} 47. d5 {[%emt 0:01:35]} e5 {[%emt 0:00:24]} 48. Re3 {[%emt 0:02:19]} Ke7 {[%emt 0:00:59]} 49. Rdd3 {[%emt 0:00:36]} Rdd7 {[%emt 0:01:05]} 50. Rc3 {[%emt 0:01:05]} Kd6 {[%emt 0:00:41]} 51. g4 {[%emt 0:03:33]} hxg4+ {[%emt 0:02:42]} 52. Kxg4 {[%emt 0:00:07]} Rxc3 {[%emt 0:03:50]} 53. Rxc3 {[%emt 0:00:05]} Rh7 {[%emt 0:01:04]} 54. Rc8 {[%emt 0:06:06]} f5+ 55. exf5 {[%emt 0:00:05]} gxf5+ {[%emt 0:02:39]} 56. Kxf5 {[%emt 0:00:43]} Rxh4 {[%emt 0:00:47]} 57. Rd8+ {[%emt 0:02:53]} Kc7 {[%emt 0:00:42]} 58. Re8 {[%emt 0:01:12]} Kd6 {[%emt 0:01:37]} 59. Rd8+ {[%emt 0:00:58]} Kc7 {[%emt 0:00:37]} 60. Re8 {[%emt 0:03:05]} Kd6 {[%emt 0:00:45]} 61. Rb8 {[%emt 0:03:08]} Rf4+ {[%emt 0:02:32]} 62. Kg5 {[%emt 0:00:32]} Rb4 {[%emt 0:02:19]} 63. Rd8+ {[%emt 0:00:45]} Ke7 {[%emt 0:00:43]} 64. Ra8 {[%emt 0:00:30]} a6 {[%emt 0:00:36]} 65. Kf5 {[%emt 0:00:42]} e4 {[%emt 0:01:26]} 66. Rh8 {[%emt 0:00:46]} e3 {[%emt 0:00:44]} 67. Rh2 {[%emt 0:00:35]} Kd6 {[%emt 0:00:47]} 68. Re2 {[%emt 0:00:27]} Rxb3 {[%emt 0:00:08]} 69. Ke4 {[%emt 0:00:21]} Rb4+ {[%emt 0:00:30]} 70. Kxe3 {[%emt 0:00:16]} Kxd5 {[%emt 0:01:21]} 71. Ra2 {[%emt 0:00:41]} Kc4 {[%emt 0:01:19]} 72. Kd2 {[%emt 0:00:19]} Kb3 {[%emt 0:00:16]} 73. Ra1 {[%emt 0:00:16]} Kb2 {[%emt 0:00:26]} 74. Rg1 {[%emt 0:00:34]} Rxa4 {[%emt 0:00:14]} 75. Rg7 {[%emt 0:00:38]} b5 {[%emt 0:00:27]} 76. Ra7 {[%emt 0:00:30]} b4 {[%emt 0:01:05]} 77. Rb7 {[%emt 0:00:46]} b3 {[%emt 0:00:30]} 78. Rb6 {[%emt 0:00:39]} a5 {[%emt 0:00:40]} 79. Rb5 {[%emt 0:00:28]} Ra1 {[%emt 0:01:04]} 0-1